[Event "Titled Tuesday Blitz May 25 2021"]
[White "Garcia Garcia, Alejandro"]
[Black "Shkapenko, Pavel"]
[WhiteFideId "3516334"]
[BlackFideId "4151933"]
[WhiteElo "2131"]
[BlackElo "2386"]
[Result "0-1"]
[Round "04"]
[TimeControl "180+1"]
[Date "2021.05.25"]
[WhiteClock "0:01:00"]
[BlackClock "0:01:59"]

1. d4 {[%clk 0:03:00]}  Nf6 {[%clk 0:02:56]} 2. c4 {[%clk 0:03:01]}  e6 {[%clk 0:02:57]} 3. Nf3 {[%clk 0:03:00]}  Bb4+ {[%clk 0:02:57]} 4. Nbd2 {[%clk 0:03:00]}  d5 {[%clk 0:02:57]} 5. e3 {[%clk 0:02:58]}  O-O {[%clk 0:02:56]} 6. Be2 {[%clk 0:02:57]}  b6 {[%clk 0:02:56]} 7. O-O {[%clk 0:02:57]}  Nbd7 {[%clk 0:02:56]} 8. cxd5 {[%clk 0:02:56]}  exd5 {[%clk 0:02:55]} 9. a3 {[%clk 0:02:57]}  Bd6 {[%clk 0:02:54]} 10. b4 {[%clk 0:02:47]}  Bb7 {[%clk 0:02:47]} 11. Bb2 {[%clk 0:02:46]}  Ne4 {[%clk 0:02:45]} 12. Rc1 {[%clk 0:02:37]}  Qe7 {[%clk 0:02:40]} 13. Qb3 {[%clk 0:02:30]}  Kh8 {[%clk 0:02:28]} 14. Nxe4 {[%clk 0:02:17]}  dxe4 {[%clk 0:02:27]} 15. Nd2 {[%clk 0:02:17]}  f5 {[%clk 0:02:26]} 16. Nc4 {[%clk 0:02:12]}  Bd5 {[%clk 0:02:24]} 17. Qc2 {[%clk 0:02:08]}  f4 {[%clk 0:02:21]} 18. Nxd6 {[%clk 0:02:06]}  cxd6 {[%clk 0:02:21]} 19. exf4 {[%clk 0:01:46]}  Rxf4 {[%clk 0:02:20]} 20. Qd2 {[%clk 0:01:42]}  Raf8 {[%clk 0:02:18]} 21. Bc4 {[%clk 0:01:40]}  Bxc4 {[%clk 0:02:00]} 22. Rxc4 {[%clk 0:01:39]}  e3 {[%clk 0:02:00]} 23. Qd1 {[%clk 0:01:00]}  e2 {[%clk 0:01:59]} 0-1


[Site "https://www.chess.com"]

[Event "Titled Tuesday Blitz May 25 2021"]
[White "Gracia Alvarez, Gerardo Antonio"]
[Black "Rahman, Ziaur"]
[WhiteFideId "5109124"]
[BlackFideId "10200037"]
[WhiteElo "2148"]
[BlackElo "2460"]
[Result "1-0"]
[Round "04"]
[TimeControl "180+1"]
[Date "2021.05.25"]
[WhiteClock "0:00:10"]
[BlackClock "0:00:02"]

1. d4 {[%clk 0:03:00]}  e6 {[%clk 0:02:57]} 2. e4 {[%clk 0:02:59]}  d5 {[%clk 0:02:56]} 3. Nd2 {[%clk 0:02:59]}  c5 {[%clk 0:02:55]} 4. exd5 {[%clk 0:02:58]}  Qxd5 {[%clk 0:02:55]} 5. Ngf3 {[%clk 0:02:56]}  cxd4 {[%clk 0:02:54]} 6. Bc4 {[%clk 0:02:56]}  Qd6 {[%clk 0:02:54]} 7. O-O {[%clk 0:02:55]}  Nf6 {[%clk 0:02:53]} 8. Re1 {[%clk 0:02:50]}  Nc6 {[%clk 0:02:48]} 9. Ne4 {[%clk 0:02:45]}  Nxe4 {[%clk 0:02:41]} 10. Rxe4 {[%clk 0:02:46]}  Be7 {[%clk 0:02:34]} 11. Nxd4 {[%clk 0:02:46]}  e5 {[%clk 0:02:19]} 12. Bf4 {[%clk 0:02:40]}  exf4 {[%clk 0:02:08]} 13. Nxc6 {[%clk 0:02:39]}  Qxc6 {[%clk 0:01:29]} 14. Qe2 {[%clk 0:02:37]}  O-O {[%clk 0:00:48]} 15. Rxe7 {[%clk 0:02:38]}  Bf5 {[%clk 0:00:40]} 16. Bb3 {[%clk 0:02:38]}  Bg6 {[%clk 0:00:37]} 17. h4 {[%clk 0:02:35]}  Rae8 {[%clk 0:00:30]} 18. Re1 {[%clk 0:02:07]}  Rxe7 {[%clk 0:00:29]} 19. Qxe7 {[%clk 0:02:06]}  f3 {[%clk 0:00:28]} 20. g4 {[%clk 0:01:12]}  h5 {[%clk 0:00:25]} 21. Re5 {[%clk 0:00:57]}  hxg4 {[%clk 0:00:12]} 22. h5 {[%clk 0:00:56]}  Bh7 {[%clk 0:00:08]} 23. Re6 {[%clk 0:00:30]}  Qc8 {[%clk 0:00:05]} 24. h6 {[%clk 0:00:20]}  gxh6 {[%clk 0:00:02]} 25. Rxh6 {[%clk 0:00:18]}  Qd8 {[%clk 0:00:02]} 26. Qe3 {[%clk 0:00:10]} 1-0


[Site "https://www.chess.com"]

[Event "Titled Tuesday Blitz May 25 2021"]
[White "Hebden, Mark L"]
[Black "Zhigalko, Sergei"]
[WhiteFideId "400084"]
[BlackFideId "13502956"]
[WhiteElo "2457"]
[BlackElo "2662"]
[Result "0-1"]
[Round "04"]
[TimeControl "180+1"]
[Date "2021.05.25"]
[WhiteClock "0:00:05"]
[BlackClock "0:00:04"]

1. d4 {[%clk 0:03:00]}  Nf6 {[%clk 0:02:59]} 2. Nf3 {[%clk 0:03:01]}  e6 {[%clk 0:03:00]} 3. c3 {[%clk 0:03:01]}  b6 {[%clk 0:03:00]} 4. Bg5 {[%clk 0:03:00]}  Bb7 {[%clk 0:03:01]} 5. Nbd2 {[%clk 0:03:00]}  Be7 {[%clk 0:03:00]} 6. e3 {[%clk 0:03:00]}  d6 {[%clk 0:03:00]} 7. Qa4+ {[%clk 0:02:57]}  Nbd7 {[%clk 0:02:58]} 8. Ba6 {[%clk 0:02:53]}  Qc8 {[%clk 0:02:58]} 9. Bxb7 {[%clk 0:02:52]}  Qxb7 {[%clk 0:02:59]} 10. O-O {[%clk 0:02:52]}  O-O {[%clk 0:02:59]} 11. Rfe1 {[%clk 0:02:50]}  h6 {[%clk 0:02:55]} 12. Bxf6 {[%clk 0:02:49]}  Nxf6 {[%clk 0:02:56]} 13. e4 {[%clk 0:02:48]}  b5 {[%clk 0:02:53]} 14. Qb3 {[%clk 0:02:47]}  Rab8 {[%clk 0:02:49]} 15. a4 {[%clk 0:02:31]}  b4 {[%clk 0:02:47]} 16. c4 {[%clk 0:02:28]}  c5 {[%clk 0:02:42]} 17. d5 {[%clk 0:02:28]}  Nd7 {[%clk 0:02:40]} 18. a5 {[%clk 0:02:22]}  Bf6 {[%clk 0:02:39]} 19. g3 {[%clk 0:02:21]}  Rfe8 {[%clk 0:02:34]} 20. Kg2 {[%clk 0:02:19]}  Re7 {[%clk 0:02:31]} 21. h4 {[%clk 0:02:17]}  Rbe8 {[%clk 0:02:31]} 22. Kf1 {[%clk 0:02:08]}  Nf8 {[%clk 0:02:29]} 23. Re3 {[%clk 0:02:02]}  Qc8 {[%clk 0:02:19]} 24. Kg2 {[%clk 0:01:59]}  g5 {[%clk 0:02:01]} 25. hxg5 {[%clk 0:01:58]}  hxg5 {[%clk 0:02:01]} 26. Rae1 {[%clk 0:01:54]}  Ng6 {[%clk 0:01:59]} 27. Qc2 {[%clk 0:01:46]}  g4 {[%clk 0:01:24]} 28. Nh2 {[%clk 0:01:38]}  Bd4 {[%clk 0:01:16]} 29. R3e2 {[%clk 0:01:26]}  exd5 {[%clk 0:01:04]} 30. cxd5 {[%clk 0:01:25]}  Ne5 {[%clk 0:01:04]} 31. Nc4 {[%clk 0:01:22]}  Nxc4 {[%clk 0:01:00]} 32. Qxc4 {[%clk 0:01:21]}  Re5 {[%clk 0:00:51]} 33. a6 {[%clk 0:01:21]}  Kg7 {[%clk 0:00:44]} 34. Qd3 {[%clk 0:01:15]}  Rh8 {[%clk 0:00:40]} 35. Rh1 {[%clk 0:00:57]}  Reh5 {[%clk 0:00:29]} 36. b3 {[%clk 0:00:56]}  R8h6 {[%clk 0:00:26]} 37. Qd2 {[%clk 0:00:27]}  Qh8 {[%clk 0:00:14]} 38. Nxg4 {[%clk 0:00:22]}  Rxh1 {[%clk 0:00:14]} 39. Nxh6 {[%clk 0:00:21]}  Qxh6 {[%clk 0:00:07]} 40. Qxh6+ {[%clk 0:00:21]}  Rxh6 {[%clk 0:00:08]} 41. f4 {[%clk 0:00:21]}  Kf6 {[%clk 0:00:07]} 42. Kf3 {[%clk 0:00:20]}  Rh1 {[%clk 0:00:06]} 43. g4 {[%clk 0:00:19]}  Rb1 {[%clk 0:00:06]} 44. g5+ {[%clk 0:00:19]}  Ke7 {[%clk 0:00:06]} 45. e5 {[%clk 0:00:17]}  Rxb3+ {[%clk 0:00:06]} 46. Ke4 {[%clk 0:00:18]}  Rb2 {[%clk 0:00:04]} 47. Re1 {[%clk 0:00:14]}  b3 {[%clk 0:00:04]} 48. exd6+ {[%clk 0:00:13]}  Kxd6 {[%clk 0:00:05]} 49. f5 {[%clk 0:00:13]}  Rf2 {[%clk 0:00:04]} 50. g6 {[%clk 0:00:08]}  fxg6 {[%clk 0:00:04]} 51. fxg6 {[%clk 0:00:09]}  b2 {[%clk 0:00:04]} 52. Ra1 {[%clk 0:00:05]}  bxa1=Q {[%clk 0:00:04]} 0-1


[Site "https://www.chess.com"]

[Event "Titled Tuesday Blitz May 25 2021"]
[White "Iskusnyh, Sergei"]
[Black "Fisabilillah, Ummi"]
[WhiteFideId "4120027"]
[BlackFideId "7104804"]
[WhiteElo "2492"]
[BlackElo "2091"]
[Result "1-0"]
[Round "04"]
[TimeControl "180+1"]
[Date "2021.05.25"]
[WhiteClock "0:00:18"]
[BlackClock "0:00:12"]

1. d4 {[%clk 0:03:00]}  Nf6 {[%clk 0:02:59]} 2. c4 {[%clk 0:03:01]}  c6 {[%clk 0:02:53]} 3. Nf3 {[%clk 0:02:59]}  d5 {[%clk 0:02:53]} 4. e3 {[%clk 0:03:00]}  a6 {[%clk 0:02:52]} 5. Bd3 {[%clk 0:02:58]}  Bg4 {[%clk 0:02:51]} 6. Nbd2 {[%clk 0:02:58]}  e6 {[%clk 0:02:52]} 7. Qc2 {[%clk 0:02:56]}  Nbd7 {[%clk 0:02:51]} 8. b3 {[%clk 0:02:54]}  Bd6 {[%clk 0:02:49]} 9. Bb2 {[%clk 0:02:53]}  Rc8 {[%clk 0:02:36]} 10. c5 {[%clk 0:02:50]}  Bb8 {[%clk 0:02:36]} 11. b4 {[%clk 0:02:46]}  Qe7 {[%clk 0:02:32]} 12. Ne5 {[%clk 0:02:43]}  Nxe5 {[%clk 0:02:04]} 13. dxe5 {[%clk 0:02:42]}  Nd7 {[%clk 0:02:03]} 14. f4 {[%clk 0:02:41]}  Bh5 {[%clk 0:02:03]} 15. O-O {[%clk 0:02:37]}  Bg6 {[%clk 0:02:00]} 16. e4 {[%clk 0:02:34]}  dxe4 {[%clk 0:01:22]} 17. Nxe4 {[%clk 0:02:32]}  O-O {[%clk 0:01:20]} 18. Rad1 {[%clk 0:02:21]}  Rfd8 {[%clk 0:01:20]} 19. Nd6 {[%clk 0:01:33]}  Bxd6 {[%clk 0:00:59]} 20. exd6 {[%clk 0:01:33]}  Qh4 {[%clk 0:00:49]} 21. Qc3 {[%clk 0:01:28]}  Nf6 {[%clk 0:00:33]} 22. Be2 {[%clk 0:01:27]}  Rd7 {[%clk 0:00:30]} 23. Rf3 {[%clk 0:01:23]}  Rcd8 {[%clk 0:00:28]} 24. Rdf1 {[%clk 0:01:13]}  Qh5 {[%clk 0:00:23]} 25. f5 {[%clk 0:00:41]}  exf5 {[%clk 0:00:21]} 26. Rxf5 {[%clk 0:00:36]}  Qxe2 {[%clk 0:00:19]} 27. Rxf6 {[%clk 0:00:34]}  Qd3 {[%clk 0:00:16]} 28. R6f3 {[%clk 0:00:20]}  Qxc3 {[%clk 0:00:16]} 29. Bxc3 {[%clk 0:00:21]}  f6 {[%clk 0:00:16]} 30. Re1 {[%clk 0:00:20]}  Bf7 {[%clk 0:00:17]} 31. Rfe3 {[%clk 0:00:20]}  Kf8 {[%clk 0:00:17]} 32. Re7 {[%clk 0:00:20]}  Bd5 {[%clk 0:00:16]} 33. g4 {[%clk 0:00:20]}  Bf7 {[%clk 0:00:15]} 34. Kf2 {[%clk 0:00:20]}  Bd5 {[%clk 0:00:14]} 35. Kg3 {[%clk 0:00:20]}  Bf7 {[%clk 0:00:13]} 36. h4 {[%clk 0:00:20]}  Be8 {[%clk 0:00:13]} 37. g5 {[%clk 0:00:20]}  fxg5 {[%clk 0:00:11]} 38. Bxg7+ {[%clk 0:00:20]}  Kg8 {[%clk 0:00:11]} 39. hxg5 {[%clk 0:00:20]}  Rxe7 {[%clk 0:00:11]} 40. Rxe7 {[%clk 0:00:19]}  Bd7 {[%clk 0:00:11]} 41. Bf6 {[%clk 0:00:18]}  Bc8 {[%clk 0:00:11]} 42. Rg7+ {[%clk 0:00:18]}  Kf8 {[%clk 0:00:11]} 43. Rxh7 {[%clk 0:00:18]}  Rd7 {[%clk 0:00:11]} 44. Rh8+ {[%clk 0:00:18]}  Kf7 {[%clk 0:00:12]} 45. Rxc8 {[%clk 0:00:18]}  Ke6 {[%clk 0:00:12]} 46. Kf4 {[%clk 0:00:18]}  Kd5 {[%clk 0:00:12]} 47. Rc7 {[%clk 0:00:18]} 1-0


[Site "https://www.chess.com"]

[Event "Titled Tuesday Blitz May 25 2021"]
[White "Jones, Gawain C B"]
[Black "Rustemov, Alexander"]
[WhiteFideId "409561"]
[BlackFideId "4119002"]
[WhiteElo "2657"]
[BlackElo "2715"]
[Result "1-0"]
[Round "04"]
[TimeControl "180+1"]
[Date "2021.05.25"]
[WhiteClock "0:00:21"]
[BlackClock "0:00:07"]

1. e4 {[%clk 0:03:00]}  e6 {[%clk 0:03:00]} 2. d4 {[%clk 0:03:00]}  d5 {[%clk 0:03:00]} 3. Nd2 {[%clk 0:03:00]}  c5 {[%clk 0:02:59]} 4. Ngf3 {[%clk 0:03:00]}  Nf6 {[%clk 0:02:59]} 5. e5 {[%clk 0:03:00]}  Nfd7 {[%clk 0:02:58]} 6. c3 {[%clk 0:03:01]}  b6 {[%clk 0:02:59]} 7. h4 {[%clk 0:02:53]}  Be7 {[%clk 0:02:57]} 8. h5 {[%clk 0:02:46]}  Ba6 {[%clk 0:02:56]} 9. Bxa6 {[%clk 0:02:42]}  Nxa6 {[%clk 0:02:57]} 10. Qe2 {[%clk 0:02:38]}  Nab8 {[%clk 0:02:56]} 11. h6 {[%clk 0:02:37]}  g6 {[%clk 0:02:55]} 12. Nf1 {[%clk 0:02:36]}  Nc6 {[%clk 0:02:55]} 13. Ne3 {[%clk 0:02:35]}  Rc8 {[%clk 0:02:45]} 14. a3 {[%clk 0:02:35]}  cxd4 {[%clk 0:02:39]} 15. cxd4 {[%clk 0:02:34]}  Na5 {[%clk 0:02:40]} 16. Qd3 {[%clk 0:02:25]}  O-O {[%clk 0:02:36]} 17. b3 {[%clk 0:02:20]}  b5 {[%clk 0:02:26]} 18. Bd2 {[%clk 0:02:19]}  Qb6 {[%clk 0:02:12]} 19. Bb4 {[%clk 0:02:16]}  Bxb4+ {[%clk 0:02:08]} 20. axb4 {[%clk 0:02:17]}  Nc6 {[%clk 0:02:08]} 21. Qd2 {[%clk 0:02:15]}  f6 {[%clk 0:02:03]} 22. Ng4 {[%clk 0:01:58]}  fxe5 {[%clk 0:01:56]} 23. dxe5 {[%clk 0:01:50]}  Rxf3 {[%clk 0:01:46]} 24. gxf3 {[%clk 0:01:50]}  Nd4 {[%clk 0:01:47]} 25. Qd3 {[%clk 0:01:22]}  Nc2+ {[%clk 0:01:35]} 26. Ke2 {[%clk 0:01:22]}  Nxa1 {[%clk 0:01:35]} 27. Rxa1 {[%clk 0:01:23]}  Qc7 {[%clk 0:01:17]} 28. Qe3 {[%clk 0:01:05]}  Nb6 {[%clk 0:00:32]} 29. Kf1 {[%clk 0:00:58]}  Rd8 {[%clk 0:00:13]} 30. Qc5 {[%clk 0:00:56]}  Rc8 {[%clk 0:00:10]} 31. Qxb5 {[%clk 0:00:45]}  d4 {[%clk 0:00:09]} 32. Qd3 {[%clk 0:00:37]}  Kf7 {[%clk 0:00:08]} 33. Qxd4 {[%clk 0:00:34]}  Rd8 {[%clk 0:00:08]} 34. Qf4+ {[%clk 0:00:32]}  Kg8 {[%clk 0:00:07]} 35. Qf6 {[%clk 0:00:31]}  Nd5 {[%clk 0:00:07]} 36. Qxe6+ {[%clk 0:00:30]}  Kh8 {[%clk 0:00:07]} 37. Kg1 {[%clk 0:00:23]}  Nf4 {[%clk 0:00:07]} 38. Qf6+ {[%clk 0:00:23]}  Kg8 {[%clk 0:00:08]} 39. Qxf4 {[%clk 0:00:23]}  Rf8 {[%clk 0:00:07]} 40. Qc4+ {[%clk 0:00:21]} 1-0


[Site "https://www.chess.com"]

[Event "Titled Tuesday Blitz May 25 2021"]
[White "Karttunen, Mika"]
[Black "Wagh Suyog"]
[WhiteFideId "502081"]
[BlackFideId "25071688"]
[WhiteElo "2343"]
[BlackElo "2219"]
[Result "0-1"]
[Round "04"]
[TimeControl "180+1"]
[Date "2021.05.25"]
[WhiteClock "0:00:10"]
[BlackClock "0:00:14"]

1. e4 {[%clk 0:03:00]}  c5 {[%clk 0:02:59]} 2. Nf3 {[%clk 0:03:00]}  d6 {[%clk 0:02:58]} 3. d4 {[%clk 0:03:00]}  cxd4 {[%clk 0:02:59]} 4. Nxd4 {[%clk 0:03:01]}  Nf6 {[%clk 0:02:59]} 5. Nc3 {[%clk 0:03:01]}  Nc6 {[%clk 0:02:47]} 6. Bc4 {[%clk 0:03:00]}  e6 {[%clk 0:02:47]} 7. Be3 {[%clk 0:02:55]}  Be7 {[%clk 0:02:47]} 8. Qe2 {[%clk 0:02:54]}  a6 {[%clk 0:02:47]} 9. O-O-O {[%clk 0:02:51]}  Bd7 {[%clk 0:02:48]} 10. Bb3 {[%clk 0:02:46]}  Qc7 {[%clk 0:02:31]} 11. g4 {[%clk 0:02:38]}  O-O-O {[%clk 0:02:12]} 12. g5 {[%clk 0:02:33]}  Ne8 {[%clk 0:02:10]} 13. f4 {[%clk 0:02:31]}  Nxd4 {[%clk 0:02:04]} 14. Bxd4 {[%clk 0:02:31]}  Bc6 {[%clk 0:02:04]} 15. h4 {[%clk 0:02:26]}  Kb8 {[%clk 0:01:53]} 16. Qe3 {[%clk 0:02:24]}  Rc8 {[%clk 0:01:51]} 17. Bb6 {[%clk 0:02:22]}  Qd7 {[%clk 0:01:51]} 18. Rhf1 {[%clk 0:02:08]}  Nc7 {[%clk 0:01:51]} 19. f5 {[%clk 0:02:04]}  Rhf8 {[%clk 0:01:49]} 20. f6 {[%clk 0:02:01]}  gxf6 {[%clk 0:01:47]} 21. gxf6 {[%clk 0:02:01]}  Bd8 {[%clk 0:01:48]} 22. Bc5 {[%clk 0:02:00]}  Ne8 {[%clk 0:01:42]} 23. e5 {[%clk 0:01:49]}  Bc7 {[%clk 0:01:29]} 24. Rg1 {[%clk 0:01:32]}  Rd8 {[%clk 0:01:20]} 25. h5 {[%clk 0:01:18]}  Qc8 {[%clk 0:01:20]} 26. Bb4 {[%clk 0:00:57]}  Rh8 {[%clk 0:01:19]} 27. h6 {[%clk 0:00:56]}  dxe5 {[%clk 0:01:16]} 28. Be7 {[%clk 0:00:56]}  Rxd1+ {[%clk 0:00:51]} 29. Rxd1 {[%clk 0:00:53]}  Rg8 {[%clk 0:00:50]} 30. Ne4 {[%clk 0:00:52]}  Bxe4 {[%clk 0:00:44]} 31. Qxe4 {[%clk 0:00:52]}  Rg6 {[%clk 0:00:44]} 32. Qf3 {[%clk 0:00:36]}  Rxh6 {[%clk 0:00:44]} 33. Ba4 {[%clk 0:00:36]}  e4 {[%clk 0:00:40]} 34. Qf2 {[%clk 0:00:28]}  Rh2 {[%clk 0:00:29]} 35. Qg1 {[%clk 0:00:21]}  h5 {[%clk 0:00:22]} 36. Bd7 {[%clk 0:00:19]}  Bf4+ {[%clk 0:00:22]} 37. Rd2 {[%clk 0:00:11]}  Rxd2 {[%clk 0:00:13]} 38. Bxc8 {[%clk 0:00:10]}  Rg2+ {[%clk 0:00:13]} 39. Kd1 {[%clk 0:00:10]}  Rxg1+ {[%clk 0:00:13]} 40. Ke2 {[%clk 0:00:11]}  Kxc8 {[%clk 0:00:14]} 41. Kf2 {[%clk 0:00:10]}  e3+ {[%clk 0:00:14]} 0-1


[Site "https://www.chess.com"]

[Event "Titled Tuesday Blitz May 25 2021"]
[White "Khanin, Semen"]
[Black "Sumaneev, Dmitry"]
[WhiteFideId "4111990"]
[BlackFideId "4125312"]
[WhiteElo "2521"]
[BlackElo "2523"]
[Result "1-0"]
[Round "04"]
[TimeControl "180+1"]
[Date "2021.05.25"]
[WhiteClock "0:00:04"]
[BlackClock "0:00:02"]

1. c4 {[%clk 0:03:00]}  Nf6 {[%clk 0:02:59]} 2. Nc3 {[%clk 0:03:00]}  c5 {[%clk 0:02:59]} 3. Nf3 {[%clk 0:02:58]}  b6 {[%clk 0:02:56]} 4. d4 {[%clk 0:02:56]}  cxd4 {[%clk 0:02:56]} 5. Nxd4 {[%clk 0:02:56]}  Bb7 {[%clk 0:02:57]} 6. b3 {[%clk 0:02:54]}  g6 {[%clk 0:02:55]} 7. Bb2 {[%clk 0:02:54]}  Bg7 {[%clk 0:02:55]} 8. e3 {[%clk 0:02:47]}  O-O {[%clk 0:02:55]} 9. Qc2 {[%clk 0:02:38]}  Nc6 {[%clk 0:02:54]} 10. O-O-O {[%clk 0:02:27]}  Nxd4 {[%clk 0:02:54]} 11. exd4 {[%clk 0:02:26]}  d5 {[%clk 0:02:53]} 12. h4 {[%clk 0:02:19]}  Qd7 {[%clk 0:02:44]} 13. f3 {[%clk 0:02:19]}  Rac8 {[%clk 0:02:37]} 14. Kb1 {[%clk 0:02:18]}  a6 {[%clk 0:02:36]} 15. Na4 {[%clk 0:02:04]}  Qc7 {[%clk 0:02:24]} 16. c5 {[%clk 0:02:03]}  bxc5 {[%clk 0:02:12]} 17. Nxc5 {[%clk 0:02:02]}  Nd7 {[%clk 0:02:04]} 18. Rc1 {[%clk 0:02:01]}  Nxc5 {[%clk 0:02:02]} 19. dxc5 {[%clk 0:01:59]}  Bxb2 {[%clk 0:01:57]} 20. Qxb2 {[%clk 0:01:55]}  Qf4 {[%clk 0:01:35]} 21. h5 {[%clk 0:01:54]}  d4 {[%clk 0:01:35]} 22. hxg6 {[%clk 0:01:52]}  hxg6 {[%clk 0:01:33]} 23. Bd3 {[%clk 0:01:50]}  e5 {[%clk 0:01:23]} 24. g3 {[%clk 0:01:46]}  Qe3 {[%clk 0:01:19]} 25. Bc4 {[%clk 0:01:41]}  Bxf3 {[%clk 0:01:14]} 26. Qh2 {[%clk 0:01:29]}  Bxh1 {[%clk 0:00:57]} 27. Rxh1 {[%clk 0:01:28]}  Kg7 {[%clk 0:00:50]} 28. Qh7+ {[%clk 0:01:27]}  Kf6 {[%clk 0:00:51]} 29. Rf1+ {[%clk 0:01:27]}  Ke7 {[%clk 0:00:51]} 30. Rxf7+ {[%clk 0:01:27]}  Rxf7 {[%clk 0:00:50]} 31. Qxf7+ {[%clk 0:01:27]}  Kd8 {[%clk 0:00:50]} 32. Qf8+ {[%clk 0:00:51]}  Kd7 {[%clk 0:00:46]} 33. Qd6+ {[%clk 0:00:32]}  Ke8 {[%clk 0:00:42]} 34. Qxg6+ {[%clk 0:00:30]}  Kd7 {[%clk 0:00:27]} 35. Qe6+ {[%clk 0:00:16]}  Kd8 {[%clk 0:00:26]} 36. Qf6+ {[%clk 0:00:17]}  Kd7 {[%clk 0:00:23]} 37. Be6+ {[%clk 0:00:16]}  Kc7 {[%clk 0:00:21]} 38. Qe7+ {[%clk 0:00:14]}  Kb8 {[%clk 0:00:19]} 39. Qd6+ {[%clk 0:00:14]}  Rc7 {[%clk 0:00:18]} 40. Qd8+ {[%clk 0:00:13]}  Kb7 {[%clk 0:00:11]} 41. Bd5+ {[%clk 0:00:13]}  Rc6 {[%clk 0:00:11]} 42. Qb6+ {[%clk 0:00:13]}  Kc8 {[%clk 0:00:10]} 43. Qxc6+ {[%clk 0:00:13]}  Kd8 {[%clk 0:00:10]} 44. Qd6+ {[%clk 0:00:12]}  Ke8 {[%clk 0:00:11]} 45. Bc6+ {[%clk 0:00:06]}  Kf7 {[%clk 0:00:10]} 46. Bd5+ {[%clk 0:00:05]}  Ke8 {[%clk 0:00:10]} 47. Qe6+ {[%clk 0:00:05]}  Kd8 {[%clk 0:00:09]} 48. Qf6+ {[%clk 0:00:05]}  Kc8 {[%clk 0:00:05]} 49. Qe6+ {[%clk 0:00:04]}  Kd8 {[%clk 0:00:05]} 50. Qg8+ {[%clk 0:00:04]}  Ke7 {[%clk 0:00:05]} 51. Qf7+ {[%clk 0:00:04]}  Kd8 {[%clk 0:00:05]} 52. Qf8+ {[%clk 0:00:04]}  Kd7 {[%clk 0:00:03]} 53. c6+ {[%clk 0:00:04]}  Kc7 {[%clk 0:00:03]} 54. Qe7+ {[%clk 0:00:04]}  Kb6 {[%clk 0:00:03]} 55. Qb4+ {[%clk 0:00:04]}  Kc7 {[%clk 0:00:03]} 56. Qb7+ {[%clk 0:00:04]}  Kd6 {[%clk 0:00:04]} 57. Qd7+ {[%clk 0:00:04]}  Kc5 {[%clk 0:00:04]} 58. b4+ {[%clk 0:00:04]}  Kxb4 {[%clk 0:00:04]} 59. Qb7+ {[%clk 0:00:04]}  Kc5 {[%clk 0:00:04]} 60. Qb3 {[%clk 0:00:03]}  Qe1+ {[%clk 0:00:03]} 61. Kb2 {[%clk 0:00:03]}  Qf2+ {[%clk 0:00:03]} 62. Qc2+ {[%clk 0:00:03]}  Qxc2+ {[%clk 0:00:02]} 63. Kxc2 {[%clk 0:00:04]} 1-0


[Site "https://www.chess.com"]

[Event "Titled Tuesday Blitz May 25 2021"]
[White "Khusnutdinov, Rustam"]
[Black "Taboas Rodriguez, Daniel"]
[WhiteFideId "13701703"]
[BlackFideId "2208466"]
[WhiteElo "2571"]
[BlackElo "2429"]
[Result "1-0"]
[Round "04"]
[TimeControl "180+1"]
[Date "2021.05.25"]
[WhiteClock "0:01:22"]
[BlackClock "0:00:20"]

1. d4 {[%clk 0:03:00]}  Nf6 {[%clk 0:02:59]} 2. c4 {[%clk 0:03:00]}  g6 {[%clk 0:03:00]} 3. Nc3 {[%clk 0:03:01]}  Bg7 {[%clk 0:03:01]} 4. e4 {[%clk 0:03:01]}  d6 {[%clk 0:03:01]} 5. Nge2 {[%clk 0:03:01]}  O-O {[%clk 0:03:01]} 6. Ng3 {[%clk 0:03:01]}  c5 {[%clk 0:02:57]} 7. d5 {[%clk 0:03:01]}  e6 {[%clk 0:02:58]} 8. Be2 {[%clk 0:03:00]}  exd5 {[%clk 0:02:58]} 9. cxd5 {[%clk 0:03:01]}  a6 {[%clk 0:02:53]} 10. a4 {[%clk 0:03:01]}  Nbd7 {[%clk 0:02:40]} 11. O-O {[%clk 0:02:56]}  Rb8 {[%clk 0:02:39]} 12. Bg5 {[%clk 0:02:52]}  h6 {[%clk 0:02:39]} 13. Bf4 {[%clk 0:02:44]}  Ne5 {[%clk 0:02:39]} 14. Qd2 {[%clk 0:02:45]}  h5 {[%clk 0:02:28]} 15. Bg5 {[%clk 0:02:32]}  Qa5 {[%clk 0:02:24]} 16. f4 {[%clk 0:02:18]}  Ned7 {[%clk 0:01:52]} 17. e5 {[%clk 0:02:17]}  dxe5 {[%clk 0:01:44]} 18. fxe5 {[%clk 0:02:18]}  Ng4 {[%clk 0:01:38]} 19. e6 {[%clk 0:02:18]}  fxe6 {[%clk 0:01:36]} 20. Bxg4 {[%clk 0:01:57]}  hxg4 {[%clk 0:01:33]} 21. dxe6 {[%clk 0:01:57]}  Ne5 {[%clk 0:01:26]} 22. Qd5 {[%clk 0:01:56]}  Rxf1+ {[%clk 0:01:17]} 23. Rxf1 {[%clk 0:01:56]}  Kh7 {[%clk 0:01:18]} 24. Bf4 {[%clk 0:01:36]}  Qc7 {[%clk 0:00:53]} 25. Nge4 {[%clk 0:01:25]}  c4 {[%clk 0:00:44]} 26. Ng5+ {[%clk 0:01:24]}  Kh8 {[%clk 0:00:43]} 27. Bxe5 {[%clk 0:01:23]}  Qxe5 {[%clk 0:00:20]} 28. Nf7+ {[%clk 0:01:22]} 1-0


[Site "https://www.chess.com"]